Cogmind - Beta 12 @@@ ROGUE MODE // 2023.03.03 @ 11:02:44 Player: Shin Result: Destroyed by H-55 Commando with Assault Rifle Performance ------------- Evolutions (3) 1500 Regions Visited (8) 1600 Robots Destroyed (116) 580 Value Destroyed (3248) 3248 Prototype IDs (5) 100 Alien Tech Used (0) 0 Bonus (473) 473 TOTAL SCORE: 7501 Bonus ------- Follower Combat Kills 199 Aligned with FarCom 300 Friendly Fire -26 Cogmind --------- Core Integrity 0/700 Matter 143/300 Energy 52/100 System Corruption 8% Temperature Cool (0) Movement Core (2350) Ox46 Location -7/Storage Parts ------- > --- POWER (1) -------- (None) > --- PROPULSION (4) --- (None) > --- UTILITY (6) ------ Coolant Injector Cargo Storage Unit Improved Targeting Computer Target Analyzer > --- WEAPON (2) ------- (None) > --- INVENTORY (30) --- Coolant Injector Compact Matter Pod (150) Trap Scanner ECM Suite Reaction Control System Hardlight Generator Long-range Tractor Beam AWS/Thermal Advanced Beam Cannon Cooled Particle Cannon Improved Light Cannon Mini Grenade Launcher Remote Datajack Katana Peak State ------------ > --- POWER ------------ Improved Deuterium Engine > --- PROPULSION ------- VSS Leg VSS Leg Flexi-carbon Leg Flexi-carbon Leg > --- UTILITY ---------- Cargo Storage Unit Improved Targeting Computer Hardened Light Armor Plating Hacking Suite System Shield > --- WEAPON ----------- Gatling Laser Gauss Rifle > --- INVENTORY -------- Improved Deuterium Engine Aluminum Leg Carbon-fiber Leg VSS Leg Flexi-carbon Leg Flexi-carbon Leg Armored Wheel Coolant Injector Coolant Injector High-capacity Battery Compact Matter Pod Trap Scanner Target Analyzer ECM Suite Reaction Control System Hardened Light Armor Plating Hardlight Generator Shield Generator Long-range Tractor Beam AWS/Thermal Advanced Beam Cannon Cooled Particle Cannon Cooled Particle Cannon Cooled Particle Cannon Improved Light Cannon Rocket Launcher Mini Grenade Launcher Remote Datajack Katana [Rating: 50] Favorites ----------- Power Heavy Ion Engine Engine Heavy Ion Engine Power Core Light Nuclear Core Propulsion Aluminum Leg Treads Light Treads Leg Aluminum Leg Wheel Compact Wheel Utility Cargo Storage Unit Device Heat Sink Storage Cargo Storage Unit Processor Improved Targeting Computer Hackware Hacking Suite Protection Hardened Light Armor Plating Weapon Improved Light Cannon Energy Gun AWS/Thermal Energy Cannon Beam Cannon Ballistic Gun Light Assault Rifle Ballistic Cannon Improved Light Cannon Launcher EMP Blaster Special Weapon Mining Laser Impact Weapon Heavy Flail Slashing Weapon Katana Build | -11 -10 -9 -9 -9 -8 -8 -7 -7 ------- Run | Jun Mat Mat Min Exi Min Mat Fac Sto Slots Evolved 6 | . . 2 . . . 2 2 . Power . | . . . . . . . . . Propulsion 2 | . . 2 . . . . . . Utility 4 | . . . . . . 2 2 . Weapon . | . . . . . . . . . Parts Attached 103 | . 13 37 2 5 . 11 17 18 Power 10 | . 3 5 . . . . 1 1 Engine 9 | . 3 4 . . . . 1 1 Core 1 | . . 1 . . . . . . Reactor . | . . . . . . . . . Propulsion 38 | . 3 17 2 1 . 4 5 6 Treads 3 | . . 3 . . . . . . Leg 26 | . 3 9 2 . . 2 5 5 Wheel 9 | . . 5 . 1 . 2 . 1 Hover . | . . . . . . . . . Flight . | . . . . . . . . . Utility 18 | . 5 3 . 1 . 2 3 4 Device 3 | . 1 . . . . . . 2 Storage 5 | . 3 1 . 1 . . . . Processor 2 | . . . . . . 1 . 1 Hackware 3 | . 1 . . . . . 2 . Protection 5 | . . 2 . . . 1 1 1 Artifact . | . . . . . . . . . Weapon 37 | . 2 12 . 3 . 5 8 7 Energy Gun 8 | . 1 . . 1 . 2 4 . Energy Cannon 3 | . 1 . . . . . . 2 Ballistic Gun 10 | . . 5 . 1 . . 3 1 Ballistic Cannon 3 | . . 3 . . . . . . Launcher 7 | . . 3 . . . 1 . 3 Special Weapon 1 | . . 1 . . . . . . Impact Weapon 1 | . . . . . . 1 . . Slashing Weapon 4 | . . . . 1 . 1 1 1 Piercing Weapon . | . . . . . . . . . Special Melee Weapon . | . . . . . . . . . Unidentified Prototypes 4 | . . 1 . 2 . . . 1 Parts Lost 45 | . 5 13 . 1 . . 5 21 Power 4 | . . 1 . . . . 1 2 Propulsion 21 | . 2 6 . . . . 3 10 Utility 10 | . 1 2 . 1 . . 1 5 Weapon 10 | . 2 4 . . . . . 4 Highest Loss Streak 21 | . 3 3 . 1 . . 2 21 To Critical Strikes . | . . . . . . . . . Average Slot Usage (%) 86 | . 95 97 91 66 66 84 84 83 Engine 8 | . 11 6 11 11 11 9 6 5 Core 1 | . . 4 . . . . . . Leg 29 | . 27 30 44 33 33 27 23 26 Wheel 6 | . . 9 . 10 11 8 6 . Storage 10 | . 14 11 11 11 11 9 7 7 Processor 2 | . . . . . . 9 7 7 Hackware 5 | . 7 5 . . . . 15 13 Protection 4 | . 4 5 2 . . 9 6 5 Energy Gun 4 | . 9 . . . . 5 5 4 Energy Cannon 2 | . 9 . . . . . . 1 Ballistic Gun 4 | . 9 9 11 . . . 1 4 Ballistic Cannon 2 | . . 10 11 . . . . . Naked Turns . | . . . . . . . . . Heaviest Build 163 | 11 51 58 58 148 148 161 163 163 Greatest Support 64 | 20 20 42 43 43 16 48 64 64 Greatest Overweight (x) 49 | . 5 5 2 9 9 13 13 49 Average Overweight (x) 5 | . 1 1 1 8 9 11 11 2 Largest Inventory Capacity 30 | 8 20 20 20 30 30 30 30 30 Average Capacity 24 | 8 19 20 20 29 30 30 30 30 Most Carried 30 | 6 20 20 20 27 24 30 30 30 Average Carried 22 | 6 17 19 20 23 24 28 25 26 Final Capacity 30 | 8 20 20 20 30 30 30 30 30 Final Carried 30 | 6 20 20 20 24 24 30 25 15 Class Distribution -------------------- 51% | Hauler-Mutant 25% | Mutant 23% | Scavenger-Mutant Dominant Class ---------------- Mutant | -10/Materials Scavenger-Mutant | -9/Materials Mutant | -9/Mines Hauler-Mutant | -9/Exiles Hauler-Mutant | -8/Mines Hauler-Mutant | -8/Materials Hauler-Mutant | -7/Factory Hauler-Mutant | -7/Storage Resources | -11 -10 -9 -9 -9 -8 -8 -7 -7 ----------- Run | Jun Mat Mat Min Exi Min Mat Fac Sto Matter Collected 2438 | 200 398 1027 49 25 . 406 196 137 Remotely . | . . . . . . . . . Salvage Created 3612 | . 818 1108 15 . . 457 805 409 Parts 231 | . 56 72 1 . . 33 44 25 Haulers Intercepted 7 | . 2 2 . . . 2 1 . Recyclers Shooed 4 | . . . . . . . 1 3 Parts Field Recycled . | . . . . . . . . . Retrieved Matter . | . . . . . . . . . Parts Self-Destructed . | . . . . . . . . . Prevented . | . . . . . . . . . Kills | -11 -10 -9 -9 -9 -8 -8 -7 -7 ------- Run | Jun Mat Mat Min Exi Min Mat Fac Sto Combat Hostiles Destroyed 87 | . 18 28 1 . . 12 14 14 Melee 9 | . . . . . . 7 . 2 Guns 40 | . 13 8 . . . 1 14 4 Cannons 21 | . 5 15 1 . . . . . AOE 16 | . . 5 . . . 4 . 7 Classes Destroyed 15 | . 7 4 . . . . 2 2 Worker 8 | . 2 3 . . . 1 . 2 Builder 2 | . . 1 . . . . . 1 Tunneler 1 | . . 1 . . . . . . Hauler 7 | . 2 2 . . . 2 1 . Recycler 5 | . 1 2 . . . . 2 . Operator 2 | . 2 . . . . . . . Watcher 4 | . 1 1 . . . 1 1 . Swarmer 26 | . 6 7 1 . . 8 3 1 Grunt 39 | . 12 13 . . . 2 4 8 Brawler 1 | . . . . . . . . 1 Duelist 2 | . . 1 . . . 1 . . Protector 2 | . . . . . . . . 2 Sentry 8 | . . 7 . . . 1 . . Hunter 2 | . . . . . . . 2 . Programmer 7 | . . . . . . . 5 2 Best Kill Streak 7 | . 4 5 1 . . 4 4 7 Combat Bots Only 6 | . 3 4 1 . . 4 4 6 Max Kills in Single Turn 5 | . 2 5 1 . . 4 1 2 Gunslinging . | . . . . . . . . . Exploded 4 | . . 4 . . . 4 . 2 Melee 1 | . . . . . . 1 . 1 Uniques/NPCs Destroyed . | . . . . . . . . . Combat | -11 -10 -9 -9 -9 -8 -8 -7 -7 -------- Run | Jun Mat Mat Min Exi Min Mat Fac Sto Damage Taken 6831 | . 905 1800 20 . . 242 808 3056 Core 1069 | . 108 191 6 . . 58 31 675 Absorbed by Shields 23 | . . . . . . . . 23 Regen/Repaired (Parts) 38 | . . 38 . . . . . . Core Remaining (%) 73 | 100 56 . . . 50 89 . . Volleys Fired 233 | . 69 112 3 . . 1 9 39 Largest 2 | . 2 2 2 . . 1 2 2 Hottest 139 | . 110 139 62 . . 33 108 108 Shots Fired 503 | . 129 223 6 . . 23 70 52 Gun 336 | . 105 106 3 . . 22 70 30 Cannon 139 | . 24 104 3 . . . . 8 Launcher 24 | . . 9 . . . 1 . 14 Special 4 | . . 4 . . . . . . Kinetic 303 | . 74 205 6 . . . 9 9 Thermal 176 | . 55 9 . . . 22 61 29 Explosive 15 | . . . . . . 1 . 14 Electromagnetic 9 | . . 9 . . . . . . Robot Hit Streak 18 | . 9 13 1 . . 10 18 11 Robot Miss Streak 6 | . 5 4 6 . . 4 4 3 Penetration Max 1 | . . . . . . . . 1 Secondary Targets 3 | . 2 . . . . . . 1 Max Gunslinging Chain 1 | . 1 . . . . . . 1 Autonomous 75 | . . . . . . 22 53 . Shots Hit Robots 352 | . 77 132 1 . . 34 62 46 Core Hits 197 | . 41 52 1 . . 15 29 59 Critical Kills 3 | . 1 . . . . . . 2 Critical Parts Destroyed 1 | . . 1 . . . . . . Critical Strikes 9 | . 1 3 1 . . . . 4 Meltdown 1 | . . . . . . . . 1 Destroy 3 | . 1 1 . . . . . 1 Blast 3 | . . 2 1 . . . . . Sever 2 | . . . . . . . . 2 Melee Attacks 50 | . . . . . . 35 3 12 Impact 6 | . . . . . . 6 . . Slashing 44 | . . . . . . 29 3 12 Piercing . | . . . . . . . . . Sneak Attacks 8 | . . . . . . 7 1 . Combat Hostiles . | . . . . . . . . . Follow-up Attacks 4 | . . . . . . 4 . . Damage Inflicted 8957 | . 921 2481 22 . . 1502 1752 2279 Guns 4081 | . 711 741 . . . 395 1696 538 Cannons 1732 | . 210 1335 22 . . . . 165 Explosions 1775 | . . 333 . . . 151 . 1291 Melee 1297 | . . . . . . 956 56 285 Ramming . | . . . . . . . . . Kinetic 2833 | . 474 2023 22 . . . 159 155 Thermal 3069 | . 447 142 . . . 395 1537 548 Explosive 1442 | . . . . . . 151 . 1291 Electromagnetic 316 | . . 316 . . . . . . Impact 226 | . . . . . . 226 . . Slashing 1071 | . . . . . . 730 56 285 Piercing . | . . . . . . . . . Highest Corruption 8 | . . 4 4 4 4 . 2 8 Average Corruption 3 | . . 4 4 4 4 . 1 2 Corruption Purged . | . . . . . . . . . Corruption Blocked . | . . . . . . . . . Effects 94 | . . 35 6 31 12 . 4 6 Message Errors 20 | . . 5 1 9 4 . . 1 Matter Fused 22 | . . 5 1 8 6 . 1 1 Heat Flow Errors 11 | . . 4 1 4 . . 1 1 Energy Discharges 20 | . . 10 1 4 1 . 2 2 Parts Fused 3 | . . 1 1 1 . . . . Data Loss (minor) 8 | . . 3 . 4 . . . 1 Data Loss (major) 6 | . . 3 1 1 1 . . . Misfires 3 | . . 3 . . . . . . Alerts 1 | . . 1 . . . . . . Overload Shots . | . . . . . . . . . Overflow Damage 137 | . . 22 . . . 84 16 15 Projectiles 22 | . . 22 . . . . . . Explosions 15 | . . . . . . . . 15 Melee 100 | . . . . . . 84 16 . Knockbacks 12 | . . 12 . . . . . . Impact . | . . . . . . . . . Kinetic 11 | . . 11 . . . . . . Secondary 1 | . . 1 . . . . . . Self-Inflicted Damage 64 | . . . . . . . . 64 Shots 3 | . . . . . . . . 3 Rammed . | . . . . . . . . . Targets Rammed 1 | . . 1 . . . . . . Kicked 1 | . . 1 . . . . . . Crushed . | . . . . . . . . . Highest Temperature 307 | . 264 292 191 226 . . 164 307 Average Temperature 79 | . 47 72 68 105 . . 58 142 Received Heat Transfer 2058 | . 282 444 . . . 72 117 1143 Effects 3 | . . 1 . . . . . 2 Energy Bleed 1 | . . 1 . . . . . . Interference 2 | . . . . . . . . 2 Siege Activations . | . . . . . . . . . Robots Corrupted . | . . . . . . . . . Combat Hostiles . | . . . . . . . . . Parts Fried 2 | . . 1 . . . 1 . . Impact Corruptions 2 | . . . . . . 2 . . Robots Melted 1 | . . . . . . . . 1 Combat Hostiles 1 | . . . . . . . . 1 Parts Melted 12 | . 4 . . . . 4 4 . Heat Transferred 4970 | . 1147 261 . . . 518 2003 1041 Parts Sabotaged . | . . . . . . . . . Parts Stolen . | . . . . . . . . . Parts Stripped . | . . . . . . . . . Power Chain Reactions 1 | . . 1 . . . . . . Missiles Intercepted . | . . . . . . . . . Alert | -11 -10 -9 -9 -9 -8 -8 -7 -7 ------- Run | Jun Mat Mat Min Exi Min Mat Fac Sto Peak Influence 403 | . 173 403 235 . . 170 148 386 Initial 156 | . . 29 156 . . . 51 32 Average 108 | . 72 207 181 . . 47 64 204 Maximum Alert Level 2 | . . 2 1 . . . . 1 Low Security (%) 81 | 100 100 48 54 . 100 100 100 34 Level 1 16 | . . 44 45 . . . . 65 Level 2 1 | . . 7 . . . . . . Level 3 . | . . . . . . . . . Level 4 . | . . . . . . . . . Level 5 . | . . . . . . . . . High Security . | . . . . . . . . . Max Security . | . . . . . . . . . Squads Dispatched 23 | . 4 4 . . . 1 7 7 Investigation 6 | . 1 2 . . . 1 2 . Extermination 6 | . . . . . . . 5 1 Reinforcement 8 | . 3 2 . . . . . 3 Assault 2 | . . . . . . . . 2 Garrison 1 | . . . . . . . . 1 Intercept . | . . . . . . . . . Searches Triggered . | . . . . . . . . . Construction Impeded 1 | . . . . . . . . 1 Haulers Reinforced 2 | . . . . . . . . 2 Active Scanning Responses . | . . . . . . . . . Cargo Convoy Interrupts . | . . . . . . . . . Stealth | -11 -10 -9 -9 -9 -8 -8 -7 -7 --------- Run | Jun Mat Mat Min Exi Min Mat Fac Sto Distress Signals 11 | . 4 3 . . . 1 1 2 Communications Jammed . | . . . . . . . . . Distress Signals . | . . . . . . . . . Times Spotted 158 | . 39 51 4 . . 19 18 27 Peak Tracking Total 7 | . 5 5 4 . . 6 4 7 Tactical Retreats 5 | . 1 3 . . . . 1 . Traps | -11 -10 -9 -9 -9 -8 -8 -7 -7 ------- Run | Jun Mat Mat Min Exi Min Mat Fac Sto Traps Triggered 4 | . 2 1 . . . . 1 . Indirectly . | . . . . . . . . . Trap Hack Attempts . | . . . . . . . . . Triggered . | . . . . . . . . . Disarmed . | . . . . . . . . . Reprogrammed . | . . . . . . . . . Reused . | . . . . . . . . . Traps Extracted . | . . . . . . . . . Installed . | . . . . . . . . . Triggered . | . . . . . . . . . Machines | -11 -10 -9 -9 -9 -8 -8 -7 -7 ---------- Run | Jun Mat Mat Min Exi Min Mat Fac Sto Machines Disabled 8 | . . 2 . . . 1 1 4 Max in Single Turn 2 | . . 1 . . . 1 1 2 Machines Repaired . | . . . . . . . . . Machines Sabotaged . | . . . . . . . . . Overloaded Fab Kills . | . . . . . . . . . Hacking | -11 -10 -9 -9 -9 -8 -8 -7 -7 --------- Run | Jun Mat Mat Min Exi Min Mat Fac Sto Machines Accessed 33 | . 7 11 . 3 . 7 5 . Terminals 19 | . 4 7 . . . 5 3 . Fabricators 1 | . . . . . . . 1 . Repair Stations 2 | . 1 1 . . . . . . Recycling Units 4 | . 2 2 . . . . . . Scanalyzers 4 | . . 1 . . . 2 1 . Garrison Access . | . . . . . . . . . Total Hacks 147 | . 20 35 . 40 . 37 15 . Successful 111 | . 13 24 . 40 . 23 11 . Failed 36 | . 7 11 . . . 14 4 . Catastrophic 2 | . . . . . . 2 . . Database Lockouts . | . . . . . . . . . Manual 35 | . 7 13 . 1 . 11 2 1 Terminals 59 | . 13 20 . . . 18 8 . Fabricators 2 | . . . . . . . 2 . Repair Stations 3 | . 1 2 . . . . . . Recycling Units 10 | . 6 4 . . . . . . Scanalyzers 33 | . . 9 . . . 19 5 . Garrison Access . | . . . . . . . . . Terminal Hacks 59 | . 4 8 . 40 . 4 3 . Record 41 | . . 1 . 40 . . . . Robot Analysis 4 | . . 3 . . . 1 . . Open DSF 1 | . . . . . . . 1 . Branch Access Points 3 | . . 2 . . . . 1 . Alert Level 2 | . . 1 . . . . 1 . Locate Traps 3 | . 2 . . . . 1 . . Recall Reinforcements 1 | . . 1 . . . . . . Hauler Manifests 1 | . 1 . . . . . . . Zone Layout 3 | . 1 . . . . 2 . . Fabricator Hacks 2 | . . . . . . . 2 . Load Schematic 1 | . . . . . . . 1 . Build 1 | . . . . . . . 1 . Repair Station Hacks 3 | . 1 2 . . . . . . Scan Component 1 | . . 1 . . . . . . Repair 1 | . . 1 . . . . . . Refit 1 | . 1 . . . . . . . Recycling Unit Hacks 5 | . 3 2 . . . . . . Report Inventory 4 | . 2 2 . . . . . . Retrieve Components 1 | . 1 . . . . . . . Scanalyzer 31 | . . 9 . . . 17 5 . Insert Component 14 | . . 4 . . . 8 2 . Analyze 17 | . . 5 . . . 9 3 . Garrison Access Hacks . | . . . . . . . . . Unauthorized Hacks 11 | . 5 3 . . . 2 1 . Terminals 9 | . 3 3 . . . 2 1 . Botnet 9 | . 3 3 . . . 2 1 . Fabricators . | . . . . . . . . . Repair Stations . | . . . . . . . . . Recycling Units 2 | . 2 . . . . . . . Mask 2 | . 2 . . . . . . . Scanalyzers . | . . . . . . . . . Garrison Access . | . . . . . . . . . Data Cores Recovered . | . . . . . . . . . Used . | . . . . . . . . . Hacking Detections 27 | . 6 9 . . . 7 5 . Full Trace Events 6 | . . 2 . . . 2 2 . Feedback Events 1 | . . . . . . . 1 . Corruption 1 | . . . . . . . 1 . Feedback Blocked . | . . . . . . . . . Robot Schematics Acquired . | . . . . . . . . . Robots Built . | . . . . . . . . . Authchips . | . . . . . . . . . Time . | . . . . . . . . . Total Robot Build Rating . | . . . . . . . . . Part Schematics Acquired 13 | . . 3 . . . 8 2 . Parts Built 2 | . . . . . . . 2 . Authchips . | . . . . . . . . . Time 42 | . . . . . . . 42 . Total Part Build Rating 8 | . . . . . . . 8 . Parts Repaired 1 | . . 1 . . . . . . Time 32 | . . 32 . . . . . . Parts Recycled . | . . . . . . . . . Recycled Matter . | . . . . . . . . . Retrieved Matter . | . . . . . . . . . Retrieved Components 10 | . 10 . . . . . . . Parts Scanalyzed 13 | . . 4 . . . 7 2 . Part Schematics Acquired 13 | . . 3 . . . 8 2 . Parts Damaged 1 | . . . . . . . 1 . Bothacking | -11 -10 -9 -9 -9 -8 -8 -7 -7 ------------ Run | Jun Mat Mat Min Exi Min Mat Fac Sto Used RIF Installer . | . . . . . . . . . Robots Hacked . | . . . . . . . . . Non-combat . | . . . . . . . . . Combat . | . . . . . . . . . Robot Hacks Applied . | . . . . . . . . . Relay Couplers Released . | . . . . . . . . . Fabnet Peak Effective % . | . . . . . . . . . Robots Rewired . | . . . . . . . . . Allies Hacked . | . . . . . . . . . Hacks Repelled . | . . . . . . . . . Allies | -11 -10 -9 -9 -9 -8 -8 -7 -7 -------- Run | Jun Mat Mat Min Exi Min Mat Fac Sto Total Allies 5 | . . . 3 . . . . 2 Largest Group 3 | . . . 3 2 2 2 . 2 Highest-Rated Group 62 | . . . 40 24 24 24 . 62 Highest-Rated Ally 31 | . . . 16 16 16 16 . 31 Total Orders 4 | . . . . . . 4 . . STAY 2 | . . . . . . 2 . . FOLLOW 2 | . . . . . . 2 . . Ally Attacks 50 | . . . 9 . . 16 . 25 Total Damage 687 | . . . 66 . . 178 . 443 Kills 8 | . . . 3 . . 2 . 3 Allies Corrupted 1 | . . . . . . . . 1 Allies Melted . | . . . . . . . . . Intel | -11 -10 -9 -9 -9 -8 -8 -7 -7 ------- Run | Jun Mat Mat Min Exi Min Mat Fac Sto Robot Analysis Total 4 | . . 3 . . . 1 . . Derelict Logs Recovered . | . . . . . . . . . Drone Launches . | . . . . . . . . . Drone Recoveries . | . . . . . . . . . Exploration | -11 -10 -9 -9 -9 -8 -8 -7 -7 ------------- Run | Jun Mat Mat Min Exi Min Mat Fac Sto Turns Passed 12585 | 9 2628 3085 437 1477 626 2062 1859 402 Spaces Moved 4645 | 8 943 1247 222 608 267 686 586 78 Core 1 | . . . . . . . . 1 Treads 108 | . . 108 . . . . . . Legs 2148 | 8 943 772 222 19 . 21 88 75 Wheels 2388 | . . 367 . 589 267 665 498 2 Hover . | . . . . . . . . . Flight . | . . . . . . . . . Fastest Speed 105 | 120 120 105 190 235 235 250 265 262 Average Speed 240 | 120 248 203 191 237 235 273 282 298 Slowest Speed 2500 | 120 470 470 260 330 235 330 432 2500 Overloaded Moves . | . . . . . . . . . Propulsion Burnouts . | . . . . . . . . . Robots Hopped . | . . . . . . . . . Cave-ins Triggered 1 | . . 1 . . . . . . Exploration Rate (%) 44 | 3 99 70 36 92 34 42 9 13 Regions Visited 8 Branch Regions 4 Pre-discovered Areas 1 | . . . . 1 . . . . Known Exits Taken 2 | . . 1 . . . . 1 . Unknown Exits Taken 6 | 1 1 . 1 1 1 1 . . Scrap Searched 2 | . . . 2 . . . . . Spaces Dug 4 | . . . . . . 2 2 . Terrain Destroyed 82 | . . 12 . . . 8 7 55 Melee 4 | . . . . . . 2 2 . Projectile 17 | . . 7 . . . 3 5 2 AOE 61 | . . 5 . . . 3 . 53 Terrain Rammed . | . . . . . . . . . Walls Destroyed . | . . . . . . . . . Machines Disabled . | . . . . . . . . . Actions | -11 -10 -9 -9 -9 -8 -8 -7 -7 --------- Run | Jun Mat Mat Min Exi Min Mat Fac Sto Total 5629 | 7 1115 1583 231 643 266 832 771 181 Wait 380 | . 45 123 . . . 66 119 27 Move 4637 | 7 942 1246 221 607 266 685 585 78 Hop . | . . . . . . . . . Pick Up 135 | . 31 38 1 23 . 23 14 5 Fast Attach 7 | . 1 5 . . . 1 . . Attach 66 | . 7 19 . 4 . 6 16 14 Detach 8 | . . . . 2 . 2 4 . Swap 30 | . 5 13 2 1 . 4 1 4 Drop 80 | . 15 26 4 6 . 15 12 2 Fire 233 | . 69 112 3 . . 1 9 39 Melee 44 | . . . . . . 29 3 12 Ram . | . . . . . . . . . Kick 1 | . . 1 . . . . . . Crush . | . . . . . . . . . Escape Stasis 8 | . . . . . . . 8 . Rewire . | . . . . . . . . . Trap . | . . . . . . . . . Miscellaneous . | . . . . . . . . . Route ------- -11/Junkyard -10/Materials (discovered 4 exits: *Mat x3 / [*Min]) -9/Materials (discovered 3 exits: *Mat / *Min x2) -9/Mines (discovered 2 exits: *Mat / *Exi) -9/Exiles -8/Mines -8/Materials -7/Factory (discovered 3 exits: *Sto / Low x2) -7/Storage History --------- Turn | Location | Event 1 | -11/Junkyard | Discovered new exit (range 3) 10 | -11/Junkyard | Entered Materials 306 | -10/Materials | Build established: Mutant 362 | -10/Materials | Discovered new exit (range 7) 888 | -10/Materials | Lost 3 parts (1n1u1w) 1444 | -10/Materials | Discovered new exit (range 3) 1914 | -10/Materials | Discovered new exit (range 3) 2141 | -10/Materials | Discovered new exit (range 11) 2638 | -10/Materials | Entered another Materials area 2638 | -9/Materials | Evolved 2 slots: Propulsion x2 2923 | -9/Materials | Build established: Scavenger-Mutant 3044 | -9/Materials | Identified exit to Mines 4016 | -9/Materials | Repaired EMP Blaster 4129 | -9/Materials | Crushed by falling debris 4160 | -9/Materials | Lost 3 parts (1p2n) 4689 | -9/Materials | Lost 3 parts (1u2w) 4905 | -9/Materials | Discovered new exit (range 8) 5723 | -9/Materials | Entered Mines 5804 | -9/Mines | Assisted by bots powering up and referring to "LRC-V3" 5825 | -9/Mines | Discovered new exit (range 12) 6027 | -9/Mines | Deemed a non-threat by the Exiles lab entrance 6028 | -9/Mines | Discovered new exit (range 5) 6126 | -9/Mines | Build established: Mutant 6160 | -9/Mines | Entered Exiles 6160 | -9/Exiles | Accompanied by 2 allies 6329 | -9/Exiles | Met 8R-AWN 6373 | -9/Exiles | Met EX-HEX 6456 | -9/Exiles | Build established: Hauler-Mutant 6465 | -9/Exiles | Met EX-BIN 6505 | -9/Exiles | Aligned with FarCom system 6507 | -9/Exiles | Given EX-Vault access code 6613 | -9/Exiles | Opened EX-Vault 6622 | -9/Exiles | Found Prototype Processor 6628 | -9/Exiles | Found Prototype Slashing Weapon 6631 | -9/Exiles | Found Prototype Energy Gun 6632 | -9/Exiles | Identified Longsword +1 6634 | -9/Exiles | Identified AWS/Thermal 6690 | -9/Exiles | Warned to stay clear of 0b10 Research branches 6779 | -9/Exiles | Met EX-DEC 6817 | -9/Exiles | Learned location of Zion (-6) 7077 | -9/Exiles | Visited The Gauntlet 7471 | -9/Exiles | Discovered new exit (range 11) 7637 | -9/Exiles | Left Exiles lab with AWS/Thermal 7637 | -9/Exiles | Entered Mines 7637 | -8/Mines | Accompanied by 2 allies 8251 | -8/Mines | Discovered new exit (range 4) 8263 | -8/Mines | Entered Materials 8263 | -8/Materials | Accompanied by 2 allies 8263 | -8/Materials | Evolved 2 slots: Utility x2 10214 | -8/Materials | Discovered new exit (range 19) 10325 | -8/Materials | Entered Factory 10325 | -7/Factory | Evolved 2 slots: Utility x2 10494 | -7/Factory | Identified exit to Storage 10494 | -7/Factory | Identified exit to Lower Caves 11359 | -7/Factory | Fabricated Arm. Huge Wheel? 12184 | -7/Factory | Entered Storage 12214 | -7/Storage | Met a pair of Derelict thieves 12536 | -7/Storage | Core integrity fell below 50% 12554 | -7/Storage | Garrison activated, responded to threat 12572 | -7/Storage | Core integrity fell below 20% 12586 | -7/Storage | Destroyed by H-55 Commando with Assault Rifle Last Messages --------------- 12561_ Extracted 15 energy. 12562_ Extracted 16 energy. 12562_ K-01 Serf collects debris. 12563_ Extracted 5 energy. 12565_ R-06 Scavenger collects Aluminum Leg. 12567_ Cld. Particle Cannon destroyed. 12568_ System corrupted: Component data lost. 12568_ Slug penetrates Wall. 12568_ Arm. Wheel destroyed. 12569_ Carbon-fiber Leg destroyed. 12570_ Critical hit (Burn: +37). 12570_ R-06 Scavenger collects Wheel. 12571_ Penetrated by Slug. 12571_ Aluminum Leg destroyed. 12572_ The unstable cave ceiling collapses. 12572_ G-47 Trooper destroyed. 12573_ The unstable cave ceiling collapses. 12576_ Shield Generator destroyed. 12577_ Penetrated by Slug. 12582_ Cld. Particle Cannon destroyed. Map ----- +----------------------------------------------------+ | ??????????????????????????????????? | | ??????????????????????????????????? | | ??????????????????????????????????? | | ??????????????????????????????????? | | ??????????????????????????????????? | | ??????????????????????????????????? | | ??????????????????????????????????? | | ??????????????????????????????????? | | ??????????????????????????????????? | | ??????????????????????????????????? | | ??????????b ?????????????????????? | | ?????????# #????????????????????? | | ?????????#l #????????????????????? | | ?????????# #????????????????????? | | ?????????# #????????????????????? | | ?????????# #????????????????????? | | ?????????# h #????###?????????????? | | ????????## #???? ??????????????? | | ???????? #g g#??? """? #??????????? | | ?????????; %[#?? """ #??????????? | | ?????????; #?? """ #??????????? | | ?????????#![ #? #??????????? | | ?????????#=%*## #??????????? | | ?????????#!*!# #??????????? | | ?????????#%!! # #??????????? | | ????????##@[ # #??????????? | | ????????#%*!! ### # #?????????? | | ????????# ! #?????????? | | ????????# s + "????? | | ????????# s # ] ?????? | | ????????# % ## # ???????? | | ????????## ## # #????????? | | ???????### r " ????????? | | ?#######%# % # % # ????????? | | ?#[[!!#=%# % # * #?????????? | | ?#![/%"=%+% # =%[ #?????????? | | ?#[ ![%% # # # ??????????? | | ?#!*= " %# # # ???????????? | | ?# % # # """ #?????????????? | | ?# #### # """ +?????????????? | | ?######??# # #?????????????? | | ?????????#####?""" #?????????????? | | ???????????????""" ??????????????? | | ????????????????"" ??????????????? | | ??????????????????????????????????? | | ??????????????????????????????????? | | ??????????????????????????????????? | | ??????????????????????????????????? | | ??????????????????????????????????? | | ??????????????????????????????????? | +----------------------------------------------------+ Best States ------------- Heat Dissipation 35 Coolant Potential 65 Energy Generation 16 Energy Capacity 290 Matter Stores 300 Matter Capacity 300 Sight Range 16 Terrain Scan Density 10 Armor Coverage 150 Evasion (%) 50 Targeting Accuracy 6 Target Analysis 5 Recoil Reduction 2 Offensive Hacking 10 Defensive Hacking 10 Item Schematics ----------------- Cargo Storage Unit | -9/Materials | Scanalyzed Imp. Targeting Computer | -9/Materials | Scanalyzed Hacking Suite | -9/Materials | Scanalyzed Rocket Launcher | -8/Materials | Scanalyzed Hpw. Tractor Beam | -8/Materials | Scanalyzed ECM Suite | -8/Materials | Scanalyzed Shield Generator | -8/Materials | Scanalyzed Imp. Assault Rifle | -8/Materials | Scanalyzed Hardlight Generator | -8/Materials | Scanalyzed Melee Analysis Suite | -8/Materials | Scanalyzed Imp. Ion Engine | -8/Materials | Scanalyzed Lgt. Assault Rifle | -7/Factory | Scanalyzed Arm. Huge Wheel | -7/Factory | Scanalyzed Robot Schematics ------------------ None Fabricated ------------ Arm. Huge Wheel | x2 | -7/Factory Alien Tech Used ----------------- None Achievements -------------- Dramatic Entrance Challenges ------------ None Game ------ Seed CoolingShockMultirail Manual? 0 Play Time 01:44:22 Cumulative 89.5 hours Start 2023.03.03 @ 09:17:51 End 2023.03.03 @ 11:02:44 Sessions 1 Manual Loads 0 Difficulty Rogue Special Mode None Game No. 74 Rogue 74 Adventurer 0 Explorer 0 Win Type - Total 0 Types 0/0/0/0/0/0/0/0/0 Lore% 45 Gallery% 55 Achievement% 40 Wizard Run 0 Options --------- ASCII 0 Keyboard 0 Movement Arrows Keybinds 1 Fullscreen 0 Font 16/Terminus Map View 76x50 Tactical HUD 1 Map Filters NONE Filters NONE Steam 1 RUN: a7944aa0-c1f5-42cd-aa93-1f38a83cc546